Cogmind - Beta 10.2 *** ADVENTURER MODE // 2021.12.23 @ 16:08:43 Player: IzRey Result: Destroyed by D-53 Grenadier with Mini Grenade Launcher Performance ------------- Evolutions (1) 500 Regions Visited (4) 800 Robots Destroyed (31) 155 Value Destroyed (516) 516 Prototype IDs (0) 0 Alien Tech Used (0) 0 Bonus (176) 176 TOTAL SCORE: 2147 Bonus ------- Follower Combat Kills 176 Cogmind --------- Core Integrity 0/400 Matter 300/300 Energy 83/100 System Corruption 0% Temperature Cool (0) Movement Core (50) Location -9/Mines Parts ------- > --- POWER (1) -------- (None) > --- PROPULSION (2) --- (None) > --- UTILITY (3) ------ Improved Targeting Computer > --- WEAPON (3) ------- Ripper > --- INVENTORY (4) ---- High-capacity Storage Unit High-capacity Matter Pod (200) Structural Scanner ECM Suite Peak State ------------ > --- POWER ------------ Light Nuclear Core > --- PROPULSION ------- Aluminum Leg Aluminum Leg > --- UTILITY ---------- Structural Scanner Sensor Array Improved Targeting Computer > --- WEAPON ----------- Heavy Assault Rifle Rocket Launcher Ripper > --- INVENTORY -------- High-capacity Storage Unit High-capacity Matter Pod ECM Suite ECM Suite [Rating: 17] Favorites ----------- Power Light Ion Engine Engine Light Ion Engine Power Core Light Nuclear Core Propulsion Compact Wheel Leg Aluminum Leg Wheel Compact Wheel Hover Unit Hover Unit Flight Unit Flight Unit Utility Structural Scanner Device Structural Scanner Storage High-capacity Storage Unit Processor Improved Targeting Computer Weapon Assault Rifle Energy Gun EM Pulse Gun Ballistic Gun Assault Rifle Ballistic Cannon Light Cannon Launcher Grenade Launcher Slashing Weapon Ripper Build | -11 -10 -10 -9 -9 ------- Run | Scr Mat Min Mat Min Slots Evolved 2 | . . . 2 . Power . | . . . . . Propulsion . | . . . . . Utility 1 | . . . 1 . Weapon 1 | . . . 1 . Parts Attached 42 | 9 19 7 6 1 Power 5 | 3 1 1 . . Engine 4 | 3 1 . . . Core 1 | . . 1 . . Reactor . | . . . . . Propulsion 18 | 4 10 2 2 . Treads . | . . . . . Leg 4 | 2 . . 2 . Wheel 7 | 2 5 . . . Hover 5 | . 5 . . . Flight 2 | . . 2 . . Utility 10 | . 6 1 2 1 Device 7 | . 4 1 1 1 Storage 2 | . 2 . . . Processor 1 | . . . 1 . Hackware . | . . . . . Protection . | . . . . . Artifact . | . . . . . Weapon 9 | 2 2 3 2 . Energy Gun 2 | 1 . 1 . . Energy Cannon . | . . . . . Ballistic Gun 2 | 1 . . 1 . Ballistic Cannon 2 | . 1 1 . . Launcher 2 | . 1 . 1 . Special Weapon . | . . . . . Impact Weapon . | . . . . . Slashing Weapon 1 | . . 1 . . Piercing Weapon . | . . . . . Special Melee Weapon . | . . . . . Unidentified Prototypes . | . . . . . Parts Lost 14 | . 5 2 . 7 Power 2 | . 1 . . 1 Propulsion 6 | . 3 1 . 2 Utility 2 | . . . . 2 Weapon 4 | . 1 1 . 2 Highest Loss Streak 6 | . 4 1 . 6 Average Slot Usage (%) 92 | . 91 95 92 85 Engine 8 | . 10 13 . . Core 2 | . . . 11 4 Leg 5 | . . . 21 18 Wheel 11 | . 13 19 . . Hover 5 | . 10 . . . Flight 1 | . . 8 . . Device 18 | . 13 26 22 21 Storage 7 | . 13 1 . . Processor 2 | . . . 10 11 Energy Gun 2 | . 3 5 . . Ballistic Gun 6 | . 8 . 8 9 Ballistic Cannon 6 | . 5 14 2 . Launcher 6 | . 9 . 3 9 Slashing Weapon 4 | . . 4 11 11 Naked Turns . | . . . . . Heaviest Build 42 | 7 42 39 17 17 Greatest Support 32 | 20 32 32 20 20 Greatest Overweight (x) 13 | . 13 2 4 1 Average Overweight (x) . | . 1 . . . Largest Inventory Capacity 12 | 4 12 12 4 4 Average Capacity 7 | 4 11 4 4 4 Most Carried 12 | 3 12 10 4 4 Average Carried 5 | 2 9 4 3 4 Final Capacity 12 | 4 12 4 4 4 Final Carried 10 | 3 10 4 4 4 Class Distribution -------------------- 94% | Mutant 5% | Scavenger-Mutant Dominant Class ---------------- Mutant | -10/Materials Mutant | -10/Mines Mutant | -9/Materials Mutant | -9/Mines Resources | -11 -10 -10 -9 -9 ----------- Run | Scr Mat Min Mat Min Matter Collected 1059 | 302 387 231 123 16 Remotely . | . . . . . Salvage Created 617 | 42 241 208 88 38 Parts 47 | 1 25 14 4 3 Haulers Intercepted . | . . . . . Recyclers Shooed . | . . . . . Parts Field Recycled . | . . . . . Retrieved Matter . | . . . . . Parts Self-Destructed . | . . . . . Prevented . | . . . . . Kills | -11 -10 -10 -9 -9 ------- Run | Scr Mat Min Mat Min Combat Hostiles Destroyed 24 | 1 9 8 2 4 Melee 4 | . . 4 . . Guns 14 | 1 6 3 2 2 Cannons 1 | . . 1 . . AOE 5 | . 3 . . 2 Classes Destroyed 6 | 1 3 1 1 . Worker 3 | . 3 . . . Tunneler 1 | . . 1 . . Watcher 3 | . 3 . . . Swarmer 18 | . 8 6 . 4 Grunt 5 | 1 1 2 1 . Sentry 1 | . . . 1 . Best Kill Streak 4 | 1 4 3 1 4 Combat Bots Only 4 | 1 3 3 1 4 Max Kills in Single Turn 3 | 1 3 2 1 2 Gunslinging 1 | . 1 . . . Exploded 2 | . 2 . . 2 Melee 1 | . . 1 . . Uniques/NPCs Destroyed . | . . . . . Combat | -11 -10 -10 -9 -9 -------- Run | Scr Mat Min Mat Min Damage Taken 1590 | 16 418 288 69 799 Core 569 | . 86 79 . 404 Absorbed by Shields . | . . . . . Core Remaining (%) 67 | 100 . 34 . . Volleys Fired 68 | 4 31 18 10 5 Largest 2 | 2 2 2 2 2 Hottest 75 | 60 65 75 56 56 Shots Fired 99 | 8 47 25 13 6 Gun 72 | 8 38 12 10 4 Cannon 17 | . 4 13 . . Launcher 10 | . 5 . 3 2 Special . | . . . . . Kinetic 60 | 4 29 13 10 4 Thermal . | . . . . . Explosive 10 | . 5 . 3 2 Electromagnetic 29 | 4 13 12 . . Robot Hit Streak 11 | 6 7 7 11 3 Robot Miss Streak 3 | 1 3 3 1 1 Penetration Max . | . . . . . Secondary Targets 2 | . 2 . . . Max Gunslinging Chain 1 | . 1 . . . Shots Hit Robots 62 | 6 23 24 6 3 Core Hits 42 | 2 22 10 3 5 Critical Hits 1 | . . 1 . . Critical Kills . | . . . . . Critical Parts Destroyed 1 | . . 1 . . Melee Attacks 9 | . . 9 . . Impact . | . . . . . Slashing 9 | . . 9 . . Piercing . | . . . . . Sneak Attacks . | . . . . . Combat Hostiles . | . . . . . Follow-up Attacks . | . . . . . Damage Inflicted 1664 | 128 699 515 145 177 Guns 502 | 91 245 71 65 30 Cannons 180 | . 54 126 . . Explosions 664 | 37 400 . 80 147 Melee 318 | . . 318 . . Ramming . | . . . . . Kinetic 434 | 36 177 126 65 30 Thermal 119 | 37 82 . . . Explosive 545 | . 318 . 80 147 Electromagnetic 248 | 55 122 71 . . Impact . | . . . . . Slashing 318 | . . 318 . . Piercing . | . . . . . Highest Corruption . | . . . . . Average Corruption . | . . . . . Corruption Purged . | . . . . . Overload Shots . | . . . . . Overflow Damage 65 | . 8 57 . . Projectiles . | . . . . . Explosions 8 | . 8 . . . Melee 57 | . . 57 . . Knockbacks 3 | . . 3 . . Impact . | . . . . . Kinetic 3 | . . 3 . . Secondary . | . . . . . Self-Inflicted Damage 78 | . 61 . 17 . Shots 3 | . 2 . 1 . Rammed . | . . . . . Targets Rammed . | . . . . . Kicked . | . . . . . Crushed . | . . . . . Highest Temperature 60 | 12 36 60 6 . Average Temperature 18 | 9 11 23 4 . Received Heat Transfer 162 | 12 18 108 24 . Siege Activations . | . . . . . Robots Corrupted . | . . . . . Combat Hostiles . | . . . . . Parts Fried . | . . . . . Impact Corruptions . | . . . . . Robots Melted . | . . . . . Combat Hostiles . | . . . . . Parts Melted . | . . . . . Heat Transferred 150 | 50 100 . . . Parts Sabotaged . | . . . . . Parts Stolen . | . . . . . Parts Stripped . | . . . . . Power Chain Reactions 3 | 1 2 . . . Missiles Intercepted . | . . . . . Alert | -11 -10 -10 -9 -9 ------- Run | Scr Mat Min Mat Min Peak Influence 155 | 35 155 119 126 89 Initial 25 | . 19 25 10 . Average 44 | 9 48 50 65 46 Maximum Alert Level . | . . . . . Low Security (%) 100 | 100 100 100 100 100 Level 1 . | . . . . . Level 2 . | . . . . . Level 3 . | . . . . . Level 4 . | . . . . . Level 5 . | . . . . . High Security . | . . . . . Max Security . | . . . . . Squads Dispatched 4 | . 1 . 3 . Investigation 3 | . 1 . 2 . Extermination . | . . . . . Reinforcement 1 | . . . 1 . Assault . | . . . . . Garrison . | . . . . . Intercept . | . . . . . Construction Impeded . | . . . . . Haulers Reinforced . | . . . . . Stealth | -11 -10 -10 -9 -9 --------- Run | Scr Mat Min Mat Min Distress Signals 4 | . 1 . 3 . Communications Jammed . | . . . . . Distress Signals . | . . . . . Times Spotted 43 | 2 15 9 10 7 Peak Tracking Total 4 | 1 4 3 3 4 Tactical Retreats 4 | 2 1 1 . . Traps | -11 -10 -10 -9 -9 ------- Run | Scr Mat Min Mat Min Traps Triggered 1 | . . . 1 . Indirectly . | . . . . . Trap Hack Attempts . | . . . . . Triggered . | . . . . . Disarmed . | . . . . . Reprogrammed . | . . . . . Reused . | . . . . . Traps Extracted . | . . . . . Installed . | . . . . . Triggered . | . . . . . Machines | -11 -10 -10 -9 -9 ---------- Run | Scr Mat Min Mat Min Machines Disabled 5 | . 3 . 1 1 Max in Single Turn 1 | . 1 . 1 1 Machines Sabotaged . | . . . . . Garrisons Compromised . | . . . . . Overloaded Fab Kills . | . . . . . Fab Network Shutdowns . | . . . . . Hacking | -11 -10 -10 -9 -9 --------- Run | Scr Mat Min Mat Min Machines Accessed 8 | . 6 . 2 . Terminals 6 | . 4 . 2 . Fabricators . | . . . . . Repair Stations 1 | . 1 . . . Recycling Units 1 | . 1 . . . Scanalyzers . | . . . . . Garrison Access . | . . . . . Total Hacks 27 | . 23 . 4 . Successful 21 | . 18 . 3 . Failed 6 | . 5 . 1 . Catastrophic 1 | . 1 . . . Database Lockouts . | . . . . . Manual 1 | . 1 . . . Terminals 14 | . 10 . 4 . Fabricators . | . . . . . Repair Stations 3 | . 3 . . . Recycling Units 10 | . 10 . . . Scanalyzers . | . . . . . Garrison Access . | . . . . . Terminal Hacks 10 | . 7 . 3 . Record 2 | . 2 . . . Alert Level 3 | . 2 . 1 . Locate Traps 1 | . 1 . . . Dispatch Records 1 | . 1 . . . Maintenance Status 1 | . . . 1 . Zone Layout 2 | . 1 . 1 . Fabricator Hacks . | . . . . . Repair Station Hacks 3 | . 3 . . . Scan Component 2 | . 2 . . . Repair 1 | . 1 . . . Recycling Unit Hacks 8 | . 8 . . . Recycle Component 2 | . 2 . . . Process 1 | . 1 . . . Report Inventory 2 | . 2 . . . Retrieve Matter 2 | . 2 . . . Retrieve Components 1 | . 1 . . . Scanalyzer . | . . . . . Garrison Access Hacks . | . . . . . Unauthorized Hacks . | . . . . . Terminals . | . . . . . Fabricators . | . . . . . Repair Stations . | . . . . . Recycling Units . | . . . . . Scanalyzers . | . . . . . Garrison Access . | . . . . . Data Cores Recovered . | . . . . . Used . | . . . . . Hacking Detections 6 | . 5 . 1 . Full Trace Events 2 | . 2 . . . Feedback Events . | . . . . . Feedback Blocked . | . . . . . Robot Schematics Acquired . | . . . . . Robots Built . | . . . . . Matter . | . . . . . Time . | . . . . . Total Robot Build Rating . | . . . . . Part Schematics Acquired . | . . . . . Parts Built . | . . . . . Matter . | . . . . . Time . | . . . . . Total Part Build Rating . | . . . . . Parts Repaired 1 | . 1 . . . Time 13 | . 13 . . . Parts Recycled 2 | . 2 . . . Recycled Matter 90 | . 90 . . . Retrieved Matter . | . . . . . Retrieved Components 5 | . 5 . . . Parts Scanalyzed . | . . . . . Part Schematics Acquired . | . . . . . Parts Damaged . | . . . . . Bothacking | -11 -10 -10 -9 -9 ------------ Run | Scr Mat Min Mat Min Used RIF Installer . | . . . . . Robots Hacked . | . . . . . Non-combat . | . . . . . Combat . | . . . . . Robot Hacks Applied . | . . . . . Relay Couplers Released . | . . . . . Robots Rewired . | . . . . . Allies Hacked . | . . . . . Hacks Repelled . | . . . . . Allies | -11 -10 -10 -9 -9 -------- Run | Scr Mat Min Mat Min Total Allies 3 | . . 3 . . Largest Group 3 | . . 3 3 . Highest-Rated Group 40 | . . 40 40 . Highest-Rated Ally 16 | . . 16 16 . Total Orders 8 | . . . 8 . ROAM 1 | . . . 1 . FOLLOW 3 | . . . 3 . GUARD 4 | . . . 4 . Ally Attacks 25 | . . . 25 . Total Damage 304 | . . . 304 . Kills 6 | . . . 6 . Allies Corrupted . | . . . . . Allies Melted . | . . . . . Intel | -11 -10 -10 -9 -9 ------- Run | Scr Mat Min Mat Min Robot Analysis Total . | . . . . . Derelict Logs Recovered 3 | . . 2 . 1 Drone Launches . | . . . . . Drone Recoveries . | . . . . . Exploration | -11 -10 -10 -9 -9 ------------- Run | Scr Mat Min Mat Min Turns Passed 4840 | 951 1930 895 811 253 Spaces Moved 2903 | 426 925 725 627 200 Core 144 | 41 64 . 2 37 Treads . | . . . . . Legs 796 | 11 . . 622 163 Wheels 1599 | 374 719 506 . . Hover 142 | . 142 . . . Flight 222 | . . 219 3 . Fastest Speed 50 | 50 56 100 117 50 Average Speed 121 | 78 155 106 120 114 Slowest Speed 700 | 120 700 200 250 150 Overloaded Moves . | . . . . . Propulsion Burnouts . | . . . . . Robots Hopped . | . . . . . Cave-ins Triggered . | . . . . . Exploration Rate (%) 54 | 29 78 98 40 28 Regions Visited 4 Branch Regions 2 Pre-discovered Areas 1 | . . 1 . . Known Exits Taken 1 | . . . 1 . Unknown Exits Taken 3 | 1 1 1 . . Scrap Searched 1 | . . 1 . . Spaces Dug . | . . . . . Terrain Destroyed 73 | . 31 . 27 15 Melee . | . . . . . Projectile . | . . . . . AOE 73 | . 31 . 27 15 Terrain Rammed . | . . . . . Walls Destroyed . | . . . . . Machines Disabled . | . . . . . Actions | -11 -10 -10 -9 -9 --------- Run | Scr Mat Min Mat Min Total 4100 | 1034 1367 812 669 218 Wait 1028 | 589 362 43 22 12 Move 2899 | 425 924 724 626 200 Hop . | . . . . . Pick Up 19 | 2 15 1 1 . Fast Attach 30 | 8 13 5 4 . Attach 5 | 1 2 1 1 . Detach 9 | 3 4 1 1 . Swap 7 | . 4 1 1 1 Drop 26 | 2 12 9 3 . Fire 68 | 4 31 18 10 5 Melee 9 | . . 9 . . Ram . | . . . . . Kick . | . . . . . Crush . | . . . . . Escape Stasis . | . . . . . Rewire . | . . . . . Trap . | . . . . . Miscellaneous . | . . . . . Route ------- -11/Scrapyard -10/Materials (discovered 3 exits: *Mat x2 / [*Min]) -10/Mines (discovered 2 exits: *Mat x2) -9/Materials (discovered 3 exits: [*Mat] / *Min x2) -9/Mines History --------- Turn | Location | Event 2 | -11/Scrapyard | Met Revision 17 94 | -11/Scrapyard | Discovered new exit (range 8) 952 | -11/Scrapyard | Entered Materials 953 | -10/Materials | Build established: Mutant 1369 | -10/Materials | Discovered new exit (range 7) 1515 | -10/Materials | Lost 4 parts (1p2n1w) 2308 | -10/Materials | Discovered new exit (range 13) 2842 | -10/Materials | Discovered new exit (range 14) 2871 | -10/Materials | Repaired Grenade Launcher? 2882 | -10/Materials | Entered Mines 2883 | -10/Mines | Learned location of Storage (-7) 3308 | -10/Mines | Core integrity fell below 50% 3362 | -10/Mines | Assisted by bots powering up and referring to "LRC-V3" 3408 | -10/Mines | Discovered new exit (range 10) 3460 | -10/Mines | A weapon hastily lodged in a ceiling crevice suddenly fell to the ground 3543 | -10/Mines | Learned Materials terminal intel 3746 | -10/Mines | Discovered new exit (range 8) 3777 | -10/Mines | Entered Materials 3777 | -9/Materials | Accompanied by 3 allies 3777 | -9/Materials | Evolved 2 slots: Utility x1, Weapon x1 3778 | -9/Materials | Identified exit to Mines 3779 | -9/Materials | Loaded intel: 12 terminal locations 4498 | -9/Materials | Discovered new exit (range 4) 4588 | -9/Materials | Entered Mines 4598 | -9/Mines | Met a Derelict bent on vengeance 4645 | -9/Mines | Learned Materials terminal intel 4783 | -9/Mines | Assembled infested the area 4788 | -9/Mines | Assisted by a Guerilla fighting off Assembled 4833 | -9/Mines | Core integrity fell below 50% 4839 | -9/Mines | Core integrity fell below 20% 4841 | -9/Mines | Destroyed by D-53 Grenadier with Mini Grenade Launcher Last Messages --------------- HG-R3N(h) destroyed. The unstable cave ceiling collapses. R-06 Scavenger destroyed. The unstable cave ceiling collapses. R-06 Scavenger destroyed. The unstable cave ceiling collapses. Aluminum Leg destroyed. as-52614 destroyed. 3W-HB9(g) destroyed. Rocket Launcher destroyed. Aluminum Leg destroyed. Hvy. Assault Rifle destroyed. T-07 Excavator destroyed. The unstable cave ceiling collapses. K-01 Serf destroyed. The unstable cave ceiling collapses. Sensor Array destroyed. ECM Suite destroyed. The unstable cave ceiling collapses. [Achievement: First Step to Greatness] Map ----- +----------------------------------------------------+ | ### ??# # #?## ?????????????????? | | # " # ## = ?? ???????????????? | | "% %* % ?? ????????????????? | | ## * ?? ?????????????????? | | ???????# ?? #?????????????????? | | ???????## # # # % ?? ##??##????????????? | | ????????#### % #?# ## #????????????? | | ???????????## ! ## ???????????? | | ?????????????## ???????????? | | ????????????## ## # ??????????????? | | ????????????# ### # # ???????????????? | | ????????????# ### # ??????????????????? | | ????????????# ### ! # #???????????????????? | | ?????????????# # %= #????????????????????? | | ??????????#### # #????????????????????? | | ?????????## ##????????????????????? | | ?????????# ### ##????????????????????? | | ?????????## ### ##?# #????????????????????? | | ??????????# ##?# #??## # ##????????????????????? | | ??????????# #??# #???### #?????????????????????? | | ??????????# #??# #?#### #?????????????????????? | | ??????????# #### ### ##????????????????????? | | ??????????# ## d ##???????????????????? | | ??????????# ####### d ##??????????????????? | | ??????????# #?????# #??????????????????? | | ########### #????### @ ###?????????????????? | | ## #????# # #?????????????????? | | ## #????# #?????????????????? | | ## #????# ###???????????????? | | # #????# #???????????????? | | % % ## #????# ##???????????????? | | "" =* = #????## #???????????????? | | " #####????# # #???????????????? | | "" ##???????### ###???????????????? | | ### ##??????????# ###?????????????????? | | ??########??????????? ##???????????????????? | | ?????????????????????#### ##?????????????????????? | | | | | | | | | | | | | | | | | | | | | | | | | | | +----------------------------------------------------+ Best States ------------- Heat Dissipation 28 Energy Generation 14 Energy Capacity 160 Matter Stores 300 Matter Capacity 500 Sight Range 16 Robot Scan Range 10 Terrain Scan Density 10 ECM Strength 1 Resistance: KI 20 Resistance: TH 20 Resistance: EX 20 Resistance: EM 20 Resistance: I 20 Resistance: S 20 Resistance: P 20 Evasion (%) 53 Targeting Accuracy 6 Offensive Hacking 10 Item Schematics ----------------- None Robot Schematics ------------------ None Fabricated ------------ Nothing Alien Tech Used ----------------- None Achievements -------------- Crack Shot First Step to Greatness One Hack Too Far Part-time Mechanic Uninvited Guest Challenges ------------ None Game ------ Seed IonicMyomerDesublimator Manual? 0 Play Time 01:25:40 Cumulative 2.8 hours Start 2021.12.23 @ 10:44:33 End 2021.12.23 @ 16:08:43 Sessions 3 Manual Loads 0 Difficulty Adventurer Special Mode None Game No. 1 Rogue 0 Adventurer 1 Explorer 0 Win Type - Total 0 Types 0/0/0/0/0/0/0/0/0 Lore% 0 Gallery% 2 Achievement% 1 Wizard Run 0 Options --------- ASCII 0 Keyboard 1 Movement Vi Keybinds 0 Fullscreen 1 Font 20/SmallcapsGlow Map View 66x50 Tactical HUD 0 Map Filters NONE Filters NONE Steam 0 RUN: 5817c82f-d00f-4314-9186-86b32efb8af1